fUSD/lending_fUSD_20250403
["ID","MTS","AMOUNT","RATE_DAILY","PERIOD"]
[357055347,1743659448490,-227.810512,0.000248,7]
[357055348,1743659448501,-227.810512,0.000248,7]
[357055349,1743659448510,-503.49856381,0.00025367,2]
[357055350,1743659448520,-1537.98,0.00025454,2]
[357055351,1743659448529,-282.11,0.00025473,2]
[357055352,1743659448539,-1800.0,0.000259,9]
[357055353,1743659448548,-29745.3229822,0.00026011,2]
[357055354,1743659448558,-150.0,0.00026027,2]
[357055355,1743659448568,-215.23,0.000261,2]
[357055356,1743659448578,-1284.0,0.00026269,2]
[357055357,1743659448588,-2041.0,0.00026269,2]
[357055358,1743659448598,-574.0,0.00026269,2]
[357055359,1743659448607,-1366.0,0.00026269,2]
[357055360,1743659448617,-1434.0,0.00026269,2]
[357055361,1743659448626,-1276.0,0.00026269,2]
[357055362,1743659448635,-789.0,0.00026269,2]
[357055363,1743659448645,-4095.0,0.00026269,2]
[357055364,1743659448655,-543.0,0.00026269,2]
[357055365,1743659448666,-909.0,0.00026269,2]
[357055366,1743659448675,-3951.0,0.00026269,2]
[357055367,1743659448685,-151.0,0.00026269,2]
[357055368,1743659448694,-1017.0,0.00026269,2]
[357055369,1743659448703,-150.0,0.00026269,2]
[357055370,1743659448713,-1118.0,0.00026269,2]
[357055371,1743659448722,-2000.0,0.000263,100]
[357055372,1743659448732,-200.36,0.00026849,2]
[357055373,1743659448742,-441.22,0.00026849,2]
[357055374,1743659448752,-1000.0,0.00026852,2]
[357055375,1743659448762,-250.0,0.00027,2]
[357055376,1743659448773,-152.0,0.00027078,3]
[357055377,1743659448783,-200.0,0.000271,2]
[357055378,1743659448793,-150.0,0.00027397,2]
[357055379,1743659448802,-300.0,0.00027397,30]
[357055380,1743659448812,-425.21,0.00027397,2]
[357055381,1743659448822,-327.38165047,0.000274,2]
[357055382,1743659448832,-972.20942558,0.000274,2]
[357055383,1743659448842,-1011.0,0.000276,2]
[357055384,1743659448851,-578.0,0.000276,3]
[357055385,1743659448861,-1537.98,0.00027718,2]
[357055386,1743659448872,-1000.0,0.00027856,5]
[357055387,1743659448881,-1000.0,0.00027888,5]
[357055388,1743659448891,-255.27022236,0.00028,60]
[357055389,1743659448901,-200.0,0.000281,2]
[357055390,1743659448911,-927.96114009,0.00028159,5]
[357055391,1743659448921,-5554.0,0.000283,5]
[357055392,1743659448930,-312.343,0.00028385,19]
[357055393,1743659448940,-227.810512,0.000285,7]
[357055394,1743659448949,-227.810512,0.000285,7]
[357055395,1743659448960,-151.0,0.00028718,7]
[357055396,1743659448970,-150.0,0.00028767,2]
[357055397,1743659448980,-425.21,0.00028767,2]
[357055398,1743659448990,-29745.3229822,0.00028789,2]
[357055399,1743659448999,-152.0,0.00028888,4]
[357055400,1743659449009,-151.0,0.00028933,7]
[357055401,1743659449019,-151.0,0.00028933,7]
[357055402,1743659449029,-28577.798265,0.00028933,2]
[357055403,1743659449039,-300.0,0.00029,2]
[357055404,1743659449049,-200.0,0.000291,2]
[357055405,1743659449058,-1284.0,0.00029269,2]
[357055406,1743659449068,-2041.0,0.00029269,2]
[357055407,1743659449078,-572.0,0.00029269,2]
[357055408,1743659449088,-1366.0,0.00029269,2]
[357055409,1743659449098,-1276.0,0.00029269,2]
[357055410,1743659449108,-789.0,0.00029269,2]
[357055411,1743659449122,-4095.0,0.00029269,2]
[357055412,1743659449132,-909.0,0.00029269,2]
[357055413,1743659449141,-3949.0,0.00029269,2]
[357055414,1743659449151,-151.0,0.00029269,2]
[357055415,1743659449161,-1118.0,0.00029269,2]
[357055416,1743659449172,-227.810512,0.00029269,7]
[357055417,1743659449181,-227.810512,0.00029269,7]
[357055418,1743659449193,-1000.0,0.00029293,2]
[357055419,1743659449203,-159.74,0.00029593,2]
[357055420,1743659449213,-501.34328501,0.00029711,5]
[357055421,1743659449222,-1537.98,0.00029982,2]
[357055422,1743659449232,-200.0,0.000301,2]
[357055423,1743659449242,-150.0,0.00030136,2]
[357055424,1743659449253,-425.21,0.00030137,2]
[357055425,1743659449263,-326.66313201,0.00030315,2]
[357055426,1743659449272,-1049.08232006,0.00030471,5]
[357055427,1743659449283,-152.0,0.00030699,5]
[357055428,1743659449293,-300.0,0.00030822,30]
[357055429,1743659449302,-200.0,0.00031,2]
[357055430,1743659449313,-350.0,0.00031,2]
[357055431,1743659449323,-200.0,0.00031212,2]
[357055432,1743659449333,-200.0,0.00031212,2]
[357055433,1743659449342,-151.0,0.00031212,7]
[357055434,1743659449352,-150.0,0.00031233,2]
[357055435,1743659449363,-151.77,0.00031332,2]
[357055436,1743659449373,-154.42,0.00031342,2]
[357055437,1743659449384,-150.0,0.00031342,2]
[357055438,1743659449393,-347.33,0.00031342,2]
[357055439,1743659449403,-443.88,0.00031342,2]
[357055440,1743659449413,-150.0,0.00031342,2]
[357055441,1743659449422,-150.0,0.00031342,2]
[357055442,1743659449432,-150.0,0.00031342,2]
[357055443,1743659449442,-443.88,0.00031342,2]
[357055444,1743659449451,-157.76,0.00031342,2]
[357055445,1743659449460,-150.0,0.00031342,2]
[357055446,1743659449470,-347.33,0.00031342,2]
[357055447,1743659449479,-150.0,0.00031342,2]
[357055448,1743659449490,-150.0,0.00031342,2]
[357055449,1743659449502,-150.0,0.00031342,2]
[357055450,1743659449512,-443.88,0.00031342,2]
[357055451,1743659449522,-150.0,0.00031342,2]
[357055452,1743659449532,-150.0,0.00031342,2]
[357055453,1743659449541,-347.33,0.00031342,2]
[357055454,1743659449551,-150.0,0.00031342,2]
[357055455,1743659449560,-150.0,0.00031342,2]
[357055456,1743659449569,-459.53,0.00031342,2]
[357055457,1743659449579,-152.3,0.00031342,2]
[357055458,1743659449588,-150.0,0.00031342,2]
[357055459,1743659449598,-358.4,0.00031342,2]
[357055460,1743659449607,-150.0,0.00031342,2]
[357055461,1743659449617,-151.21,0.00031342,2]
[357055462,1743659449626,-347.33,0.00031342,2]
[357055463,1743659449636,-443.88,0.00031342,2]
[357055464,1743659449645,-155.08,0.00031342,2]
[357055465,1743659449655,-154.2,0.00031342,2]
[357055466,1743659449664,-443.88,0.00031342,2]
[357055467,1743659449673,-692.98,0.00031342,2]
[357055468,1743659449682,-150.0,0.00031342,2]
[357055469,1743659449691,-150.0,0.00031342,2]
[357055470,1743659449700,-150.0,0.00031342,2]
[357055471,1743659449711,-443.88,0.00031342,2]
[357055472,1743659449720,-150.0,0.00031342,2]
[357055473,1743659449729,-150.0,0.00031342,2]
[357055474,1743659449738,-443.88,0.00031342,2]
[357055475,1743659449747,-150.0,0.00031342,2]
[357055476,1743659449757,-150.0,0.00031342,2]
[357055477,1743659449766,-150.0,0.00031342,2]
[357055478,1743659449775,-150.0,0.00031342,2]
[357055479,1743659449786,-443.88,0.00031342,2]
[357055480,1743659449795,-162.1358458,0.00031506,2]
[357055481,1743659449804,-425.21,0.00031507,2]
[357055482,1743659449813,-200.0,0.00031524,2]
[357055483,1743659449823,-2025.7,0.00031534,2]
[357055484,1743659449834,-29745.3229822,0.00031567,2]
[357055485,1743659449843,-697.66660026,0.00031603,5]
[357055486,1743659449853,-200.0,0.00031839,2]
[357055487,1743659449862,-5973.00734266,0.00031901,2]
[357055488,1743659449871,-227.810512,0.00031901,7]
[357055489,1743659449880,-227.810512,0.00031901,7]
[357055490,1743659449890,-200.0,0.00032,2]
[357055491,1743659449899,-200.0,0.00032158,2]
[357055492,1743659449908,-443.88,0.00032164,2]
[357055493,1743659449917,-150.0,0.00032164,2]
[357055494,1743659449927,-874.27,0.00032164,2]
[357055495,1743659449936,-150.0,0.00032164,2]
[357055496,1743659449945,-150.0,0.00032164,2]
[357055497,1743659449955,-150.0,0.00032164,2]
[357055498,1743659449964,-150.0,0.00032164,2]
[357055499,1743659449973,-1537.98,0.00032245,2]
[357055500,1743659449982,-1284.0,0.00032269,2]
[357055501,1743659449991,-2041.0,0.00032269,2]
[357055502,1743659450001,-1617.739,0.00032269,2]
[357055503,1743659450011,-909.0,0.00032269,2]
[357055504,1743659450020,-1118.0,0.00032269,2]
[357055505,1743659450030,-200.0,0.0003232,2]
[357055506,1743659450039,-150.98617533,0.000324,2]
[357055507,1743659450049,-152.0,0.00032509,6]
[357055508,1743659450058,-200.0,0.00032643,2]
[357055509,1743659450067,-200.36,0.00032646,2]
[357055510,1743659450077,-441.22,0.00032646,2]
[357055511,1743659450087,-168.64,0.00032767,2]
[357055512,1743659450096,-151.0,0.00032768,7]
[357055513,1743659450106,-213.635861,0.00032768,7]
[357055514,1743659450121,-151.0,0.00032768,7]
[357055515,1743659450130,-227.810512,0.00032768,7]
[357055516,1743659450139,-227.810512,0.00032768,7]
[357055517,1743659450149,-67750.85005593,0.00032769,2]
[357055518,1743659450159,-500.0,0.00032876,120]
[357055519,1743659450303,-500.0,0.00032876,120]
[357055520,1743659450314,-500.0,0.00032876,120]
[357055521,1743659450324,-500.0,0.00032876,120]
[357055522,1743659450334,-500.0,0.00032876,120]
[357055523,1743659450343,-539.71125382,0.00032876,120]
[357055524,1743659450353,-425.21,0.00032877,2]
[357055525,1743659450363,-170.0,0.00032932,120]
[357055526,1743659450373,-774.85521724,0.00033,5]
[357055527,1743659450384,-400.0,0.00033,2]
[357055528,1743659450394,-200.0,0.00033151,2]
[357055529,1743659450406,-23791.15480823,0.00033322,2]
[357055530,1743659450417,-1500.0,0.00033463,7]
[357055531,1743659450428,-518.934038,0.000335,15]
[357055532,1743659450438,-340.7877167,0.00033595,4]
[357055533,1743659450448,-23097.42554097,0.00033731,2]
[357055534,1743659450457,-201.92,0.00034,4]
[357055535,1743659450467,-151.721778,0.00034,7]
[357055536,1743659450476,-2000.0,0.000342,2]
[357055537,1743659450486,-300.0,0.00034247,30]
[357055538,1743659450496,-152.0,0.0003432,7]
[357055539,1743659450506,-151.0,0.00034344,7]
[357055540,1743659450515,-227.810512,0.00034344,7]
[357055541,1743659450525,-227.810512,0.00034344,7]
[357055542,1743659450534,-29745.3229822,0.00034344,2]
[357055543,1743659450543,-2000.0,0.00034463,3]
[357055544,1743659450553,-2009.4137,0.00034463,3]
[357055545,1743659450563,-500.0,0.000345,15]
[357055546,1743659450572,-1537.98,0.00034509,2]
[357055547,1743659450581,-151.0,0.00034523,7]
[357055548,1743659450590,-287.13951894,0.00034523,2]
[357055549,1743659450600,-337.39062555,0.00034523,2]
[357055550,1743659450611,-163.01185856,0.00034523,6]
[357055551,1743659450621,-570.5557696,0.00034599,2]
[357055552,1743659450633,-5781.39623617,0.0003461,30]
[357055553,1743659450643,-6195.610332,0.00034612,2]
[357055554,1743659450652,-2719.8465923,0.00034612,2]
[357055555,1743659450661,-151.77,0.00034613,2]
[357055556,1743659450671,-151.77,0.00034613,2]
[357055557,1743659450681,-10000.0,0.00034616,30]
[357055558,1743659450691,-150.0,0.00034616,2]
[357055559,1743659450701,-532083.00697601,0.00034623,30]
[357055560,1743659450711,-151.0,0.00034623,7]
[357055561,1743659450720,-151.0,0.00034623,7]
[357055562,1743659450731,-151.77,0.00034626,2]
[357055563,1743659450741,-151.0,0.00034636,7]
[357055564,1743659450751,-198920.89684928,0.00034636,120]
[357055565,1743659450761,-600.0,0.00034638,13]
[357055566,1743659450770,-600.0,0.00034638,13]
[357055567,1743659450779,-600.0,0.00034638,13]
[357055568,1743659450788,-600.0,0.00034638,13]
[357055569,1743659450798,-600.0,0.00034638,13]
[357055570,1743659450807,-600.0,0.00034638,13]
[357055571,1743659450819,-600.0,0.00034638,13]
[357055572,1743659450829,-600.0,0.00034638,13]
[357055573,1743659450840,-222.51594217,0.00034638,13]
[357055574,1743659450850,-497.54527745,0.00034643,2]
[357055575,1743659450860,-209.0,0.0003466,2]
[357055576,1743659450871,-1103.87198605,0.0003467,2]
[357055577,1743659450879,-700.0,0.0003467,2]
[357055578,1743659450889,-55100.82,0.000347,14]
[357055579,1743659450898,-968.04,0.000347,2]
[357055580,1743659450908,-3445.83364792,0.000348,2]
[357055581,1743659450919,-2200.0,0.000349,12]
[357055582,1743659450929,-3140.30443063,0.00035,2]
[357055583,1743659450938,-858.0,0.00035,40]
[357055584,1743659450948,-500.8147486,0.00035,120]
[357055585,1743659450958,-450.0,0.00035,2]
[357055586,1743659450968,-168.52,0.00035,2]
[357055587,1743659450980,-205.87140313,0.00035,2]
[357055588,1743659450989,-25539.74,0.00035,120]
[357055589,1743659450999,-161.62,0.00035068,2]
[357055590,1743659451009,-1118.0,0.00035269,2]
[357055591,1743659451018,-500.0,0.00035349,2]
[357055592,1743659451028,-500.0,0.00035349,2]
[357055593,1743659451037,-150.0,0.00035349,2]
[357055594,1743659451047,-500.0,0.00035349,2]
[357055595,1743659451056,-273.66637476,0.00035349,2]
[357055596,1743659451065,-150.0,0.00035349,2]
[357055597,1743659451075,-500.0,0.00035349,2]
[357055598,1743659451084,-817.0,0.00035349,2]
[357055599,1743659451093,-150.0,0.00035349,2]
[357055600,1743659451103,-150.0,0.00035349,2]
[357055601,1743659451117,-1959.0,0.00035349,2]
[357055602,1743659451128,-162.48035718,0.00035349,2]
[357055603,1743659451137,-776.0,0.00035349,2]
[357055604,1743659451147,-808.0,0.00035349,2]
[357055605,1743659451158,-150.0,0.00035349,2]
[357055606,1743659451167,-151.0,0.00035376,7]
[357055607,1743659451177,-500.0,0.00035376,2]
[357055608,1743659451187,-500.0,0.00035376,2]
[357055609,1743659451197,-150.0,0.00035376,2]
[357055610,1743659451207,-500.0,0.00035376,2]
[357055611,1743659451216,-150.36224567,0.00035376,2]
[357055612,1743659451226,-500.0,0.00035376,2]
[357055613,1743659451235,-817.0,0.00035376,2]
[357055614,1743659451245,-150.0,0.00035376,2]
[357055615,1743659451254,-150.0,0.00035376,2]
[357055616,1743659451263,-1959.0,0.00035376,2]
[357055617,1743659451273,-776.0,0.00035376,2]
[357055618,1743659451284,-808.0,0.00035376,2]
[357055619,1743659451293,-169.38996025,0.00035376,2]
[357055620,1743659451303,-500.0,0.00035404,2]
[357055621,1743659451312,-500.0,0.00035404,2]
[357055622,1743659451322,-202.09111867,0.00035404,2]
[357055623,1743659451331,-606.30626652,0.00035404,2]
[357055624,1743659451340,-500.0,0.00035404,2]
[357055625,1743659451350,-817.0,0.00035404,2]
[357055626,1743659451359,-150.0,0.00035404,2]
[357055627,1743659451369,-231.78613007,0.00035404,2]
[357055628,1743659451379,-1959.0,0.00035404,2]
[357055629,1743659451388,-776.0,0.00035404,2]
[357055630,1743659451398,-808.0,0.00035404,2]
[357055631,1743659451409,-895.43461614,0.00035431,2]
[357055632,1743659451419,-500.0,0.00035431,2]
[357055633,1743659451428,-500.0,0.00035431,2]
[357055634,1743659451438,-817.0,0.00035431,2]
[357055635,1743659451448,-150.0,0.00035431,2]
[357055636,1743659451457,-1959.0,0.00035431,2]
[357055637,1743659451467,-776.0,0.00035431,2]
[357055638,1743659451477,-808.0,0.00035431,2]
[357055639,1743659451487,-998.25953425,0.00035459,2]
[357055640,1743659451496,-663.69324439,0.00035459,2]
[357055641,1743659451506,-817.0,0.00035459,2]
[357055642,1743659451515,-150.0,0.00035459,2]
[357055643,1743659451525,-1959.0,0.00035459,2]
[357055644,1743659451534,-776.0,0.00035459,2]
[357055645,1743659451543,-808.0,0.00035459,2]
[357055646,1743659451553,-817.0,0.00035486,2]
[357055647,1743659451563,-250.0,0.00035486,2]
[357055648,1743659451572,-1959.0,0.00035486,2]
[357055649,1743659451582,-776.0,0.00035486,2]
[357055650,1743659451591,-808.0,0.00035486,2]
[357055651,1743659451601,-817.0,0.00035513,2]
[357055652,1743659451611,-1959.0,0.00035513,2]
[357055653,1743659451620,-776.0,0.00035513,2]
[357055654,1743659451630,-808.0,0.00035513,2]
[357055655,1743659451640,-817.0,0.00035541,2]
[357055656,1743659451650,-1959.0,0.00035541,2]
[357055657,1743659451659,-776.0,0.00035541,2]
[357055658,1743659451669,-808.0,0.00035541,2]
[357055659,1743659451677,-817.0,0.00035568,2]
[357055660,1743659451687,-1959.0,0.00035568,2]
[357055661,1743659451696,-776.0,0.00035568,2]
[357055662,1743659451705,-808.0,0.00035568,2]
[357055663,1743659451715,-817.0,0.00035596,2]
[357055664,1743659451724,-1959.0,0.00035596,2]
[357055665,1743659451734,-776.0,0.00035596,2]
[357055666,1743659451743,-808.0,0.00035596,2]
[357055667,1743659451753,-150.0,0.00035616,2]
[357055668,1743659451762,-817.0,0.00035623,2]
[357055669,1743659451771,-1959.0,0.00035623,2]
[357055670,1743659451780,-776.0,0.00035623,2]
[357055671,1743659451790,-808.0,0.00035623,2]
[357055672,1743659451800,-1000.0,0.00035643,2]
[357055673,1743659451809,-248.1276018,0.00035643,2]
[357055674,1743659451819,-1066.0,0.00035646,5]
[357055675,1743659451829,-817.0,0.0003565,2]
[357055676,1743659451838,-1959.0,0.0003565,2]
[357055677,1743659451848,-776.0,0.0003565,2]
[357055678,1743659451857,-808.0,0.0003565,2]
[357055679,1743659451867,-817.0,0.00035678,2]
[357055680,1743659451876,-1959.0,0.00035678,2]
[357055681,1743659451886,-776.0,0.00035678,2]
[357055682,1743659451895,-808.0,0.00035678,2]
[357055683,1743659451904,-817.0,0.00035705,2]
[357055684,1743659451913,-1959.0,0.00035705,2]
[357055685,1743659451923,-776.0,0.00035705,2]
[357055686,1743659451932,-808.0,0.00035705,2]
[357055687,1743659451942,-817.0,0.00035733,2]
[357055688,1743659451951,-1959.0,0.00035733,2]
[357055689,1743659451960,-776.0,0.00035733,2]
[357055690,1743659451969,-808.0,0.00035733,2]
[357055691,1743659451979,-209.0,0.0003575,2]
[357055692,1743659451988,-817.0,0.0003576,2]
[357055693,1743659451998,-1959.0,0.0003576,2]
[357055694,1743659452008,-727.4037974,0.0003576,2]
[357055695,1743659452255,-48.5962026,0.0003576,2]
[357055696,1743659452265,-428.15489094,0.0003576,2]
[357055702,1743660427124,-751.0458,0.000149,2]
[357055703,1743660427146,-250.0,0.0001639,2]
[357055704,1743660427167,-206.93922765,0.000165,2]
[357055705,1743660438095,-43.06077235,0.000165,2]
[357055706,1743660438117,-730.37725172,0.0002179,2]
[357055707,1743660438138,-154.387,0.00025345,2]
[357055708,1743660438159,-1118.0,0.00025345,2]
[357055709,1743660438181,-250.0,0.00027,2]
[357055710,1743660438204,-300.0,0.00027397,30]
[357055711,1743660438225,-877.885,0.00028345,2]
[357055712,1743660438248,-300.0,0.00029,2]
[357055713,1743660438270,-350.0,0.00031,2]
[357055714,1743660438292,-230.29339993,0.00032386,2]
[357055715,1743660438314,-845.88,0.00032695,2]
[357055716,1743660438335,-400.0,0.00033,2]
[357055717,1743660438358,-300.0,0.0003371,30]
[357055718,1743660438380,-5021.21608637,0.00033893,2]
[357055719,1743660438403,-155.83,0.00033934,120]
[357055720,1743660438427,-161.62,0.00034167,2]
[357055721,1743660438448,-1365.30091068,0.000342,2]
[357055722,1743660452359,-634.69908932,0.000342,2]
[357055723,1743660452382,-306.60925108,0.00034294,2]
[357055726,1743660631969,-838.812,0.00025874,2]
[357055727,1743660631979,-3223.97994564,0.00034294,2]
[357055728,1743660632138,-1541.29204,0.00034294,2]
[357055729,1743660632150,-505.95,0.00034294,2]
[357055730,1743660632162,-615.1,0.00034294,2]
[357055731,1743660632197,-2033.2665655,0.00034294,2]
[357055751,1743660634883,1846.98122289,0.00032,120]
[357055756,1743660638105,-15673.80219778,0.00034294,2]
[357055757,1743660638114,-358.2550642,0.00034543,2]
[357055758,1743660638124,-803.0,0.00034643,30]
[357055759,1743660638133,-255.5907875,0.00034687,4]
[357055760,1743660638143,-871.24,0.000347,2]
[357055761,1743660638152,-250.0,0.00034854,2]
[357055762,1743660638161,-1000.0,0.00034859,2]
[357055763,1743660638171,-845.88,0.00034958,2]
[357055764,1743660638180,-150.0,0.00034974,2]
[357055765,1743660638189,-168.52,0.00035,2]
[357055766,1743660638198,-450.0,0.00035,2]
[357055767,1743660638207,-1118.44021177,0.00035005,2]
[357055768,1743660638216,-150.0,0.00035092,7]
[357055769,1743660638226,-285.676,0.00035198,41]
[357055770,1743660638235,-1873.81933596,0.0003549,2]
[357055771,1743660638244,-155.0,0.00035499,2]
[357055772,1743660638253,-10556.06246893,0.000355,4]
[357055785,1743660640605,-947.66428876,0.000355,4]
[357055808,1743660644125,-818.911074,0.000355,4]
[357055809,1743660644151,-154.80355909,0.000355,4]
[357055819,1743660646271,-1056.09999,0.000355,4]
[357055897,1743660850587,2989.26,0.00014859,2]
[357055908,1743661350716,365.06889445,0.00034626,120]
[357055909,1743661509232,-152.35,0.00015,2]
[357055911,1743661636131,-1526.37978798,0.0001499,2]
[357055912,1743661645097,-161.05466023,0.00014899,2]
[357055913,1743661645118,-347.43954798,0.0001499,2]
[357055914,1743661645140,-150.0,0.00014999,2]
[357055915,1743661645166,-4597.40250232,0.00015,2]
[357055918,1743661674586,316.45820106,0.0001,2]
[357055921,1743661759619,-446.3409,0.000149,2]
[357055922,1743661759662,-471.8663,0.000149,2]
[357055924,1743661759705,-419.79084926,0.000149,2]
[357055926,1743661774127,-143.89595074,0.000149,2]
[357055927,1743661774151,-4377.45841126,0.000149,2]
[357055928,1743661784786,-426.05815646,0.000149,2]
[357055935,1743661832184,-485.11,0.000149,2]
[357055936,1743661832265,-359.189994,0.000149,2]
[357055937,1743661832345,-22.50093828,0.000149,2]
[357055938,1743661832354,-382.59906172,0.00014973,2]
[357055939,1743661832366,-117.40093828,0.00014973,2]
[357055940,1743661832375,-150.0,0.00014999,2]
[357055941,1743661832384,-229.94906172,0.00015,2]
[357055942,1743661832395,-458.128,0.00015,2]
[357055943,1743661832491,-4411.61070056,0.00015,2]
[357055944,1743661832571,-20812.0,0.00015,2]
[357055955,1743661838142,-2089.04818399,0.00015,2]
[357055956,1743661838353,-255.7999998,0.00015,2]
[357056150,1743661840323,-541.593,0.00015,2]
[357056153,1743661840334,-947.66428876,0.00015,2]
[357056310,1743661843336,-1039.9999,0.00015,2]
[357056311,1743661843409,-731773.6298,0.00015,2]
[357056317,1743661846232,-12922.41315385,0.00015,2]
[357056318,1743661846513,-50833.89676244,0.00015,2]
[357056324,1743661896889,75438.03849856,0.00032,120]
[357056328,1743662001116,1068.40958,0.00014999,5]
[357056329,1743662013835,30000.0,0.00034627,30]
[357056330,1743662028162,2155.28903683,0.00034627,120]
[357056338,1743662831118,-150.0,0.00014899,2]
[357056339,1743662831143,-3161.1657,0.000149,2]
[357056340,1743662831165,-1082.8891,0.000149,2]
[357056341,1743662831189,-6805.2246717,0.000149,2]
[357056342,1743662846085,-1460.50459821,0.000149,2]
[357056344,1743662912634,-9125.64193009,0.000149,2]
[357056345,1743662912676,-509.0311,0.000149,2]
[357056346,1743662912721,-667.47612183,0.000149,2]
[357056347,1743662913198,-513.25647817,0.000149,2]
[357056348,1743662913245,-342.2159,0.000149,2]
[357056349,1743662913290,-2591.17839992,0.000149,2]
[357056353,1743663032498,-10.79920008,0.000149,2]
[357056354,1743663032511,-268.4372,0.000149,2]
[357056355,1743663032528,-182.31819448,0.00014924,2]
[357056356,1743663032541,-504.45953057,0.00014973,2]
[357056357,1743663032552,-510.04175446,0.00014973,2]
[357056358,1743663032567,-58.770708,0.00014973,2]
[357056376,1743663038407,-339.82166565,0.00014973,2]
[357056377,1743663038419,-106.14038575,0.00014973,2]
[357056378,1743663038429,-30088.95308414,0.00015,2]
[357056379,1743663038454,-1652.3507,0.00015,2]
[357056380,1743663038495,-7540.58341033,0.00015,2]
[357056381,1743663038537,-924.5,0.00015,2]
[357056382,1743663038578,-1887.54303387,0.00015,2]
[357056383,1743663038623,-400.6499982,0.00015,2]
[357056384,1743663038753,-1605.79062912,0.00015,2]
[357056398,1743663040796,-945.6714108,0.00015,2]
[357056399,1743663041012,-802.5534407,0.00015,2]
[357056400,1743663041024,-2150.11756893,0.00015,2]
[357056416,1743663043514,-8856.59502524,0.00015,2]
[357056424,1743663044301,-64.88927999,0.00015,2]
[357056425,1743663044324,-4058.2309764,0.00015,2]
[357056426,1743663044343,-10419.56999999,0.00015,2]
[357056430,1743663046576,-339482.22504028,0.00015,2]
[357056446,1743663046897,-828.35731899,0.00015,2]
[357056447,1743663046926,-6895.33,0.00015,2]
[357056448,1743663046942,-500.37233362,0.00015,2]
[357056459,1743663051100,-300.0,0.00027397,30]
[357056460,1743663051128,-300.0,0.00030822,30]
[357056461,1743663051158,-155.83,0.00032932,120]
[357056462,1743663051188,-300.0,0.00034247,30]
[357056463,1743663051218,-201.41,0.000345,30]
[357056464,1743663051246,-52000.0,0.00035,120]
[357056465,1743663051275,-199.82898451,0.00036438,30]
[357056466,1743663051304,-199.82898451,0.00036849,30]
[357056467,1743663051334,-182.55686589,0.000372,103]
[357056468,1743663051361,-182.55686587,0.000372,103]
[357056469,1743663051388,-182.55686587,0.000372,103]
[357056470,1743663051416,-300.0,0.00037671,30]
[357056471,1743663051444,-155.83,0.00037858,120]
[357056472,1743663051471,-247.86508966,0.00038,120]
[357056473,1743663051498,-194.65958767,0.00038,120]
[357056474,1743663051525,-164.91945,0.00038048,30]
[357056475,1743663051555,-625.27398697,0.00039,120]
[357056476,1743663051585,-153.44608411,0.000391,120]
[357056477,1743663051612,-270.62511214,0.000396,120]
[357056478,1743663051638,-2500.0,0.00039799,120]
[357056479,1743663051666,-1015356.90357109,0.000398,120]
[357056480,1743663051694,-1068.40958001,0.00039999,30]
[357056481,1743663051720,-9879.3477479,0.0004,30]
[357056482,1743663051746,-477.12749073,0.0004,30]
[357056483,1743663051772,-3769.98172945,0.0004,30]
[357056484,1743663051799,-350.78138124,0.0004,30]